[Event "1st Serbian League 2022"]
[Site "Vrnjacka Banja"]
[Date "2022.09.20"]
[Round "1.6"]
[White "Todorovic, Goran N"]
[Black "Omorjan, Dejan"]
[Result "1/2-1/2"]
[ECO "B32"]
[WhiteElo "2305"]
[BlackElo "2265"]
[Annotator "TA"]
[PlyCount "52"]
[EventDate "2022.09.20"]
[EventType "team-tourn"]
[EventCountry "SRB"]
[SourceTitle "playchess.com"]
[Source "ChessBase"]
[SourceQuality "1"]
[TimeControl "40/5400+30:1800+30"]

{[%evp 15,52,13,48,31,56,45,35,40,56,41,62,42,61,36,42,33,56,31,60,0,12,13,64,0,16,-13,0,0,-1,-75,-32,-47,-15,-25,18,19,38,3,13]} 1. e4 {[%emt 0:00:09]} c5 {[%emt 0:00:07]} 2. Nf3 {[%emt 0:00:11]} Nc6 {[%emt 0:00:06]} 3. d4 {[%emt 0:00:22]} cxd4 {[%emt 0:00:05]} 4. Nxd4 {[%emt 0:00:06]} e5 {[%emt 0:00:07]} 5. Nb5 {[%emt 0:00:31]} d6 {[%emt 0:00:06]} 6. N1c3 {[%emt 0:00:35]} a6 {[%emt 0:00:06]} 7. Na3 {[%emt 0:00:09]} b5 {[%emt 0:00:04]} 8. Nd5 {[%emt 0:00:40]} Nge7 {[%emt 0:00:50]} 9. Bd3 {[%emt 0:02:04] B32: Sicilian: Löwenthal and Kalashnikov Variations.} Nxd5 {[%emt 0:07:27]} 10. exd5 {[%emt 0:00:31]} Ne7 {[%emt 0:01:05]} 11. c4 $1 {[%emt 0:03:09] White is slightly better. 11.c4 is better than 11.0-0.} g6 {[%emt 0:01:04]} 12. cxb5 {[%emt 0:04:08]} Bg7 {[%emt 0:01:35]} 13. O-O {[%emt 0:14:08]} O-O {[%emt 0:01:45]} 14. Bg5 {[%emt 0:11:30]} f6 {[%emt 0:09:42] [#]} 15. Bd2 $146 {[%emt 0:03:45]} ({Predecessor:} 15. Be3 f5 16. Qb3 f4 17. Bd2 f3 18. g3 Qd7 19. Rfc1 Qh3 20. Bf1 Qh5 21. b6 {0-1 (55) Hagner,B (2046)-Muetsch,A (2236) Neustadt an der Weinstrasse 2020}) 15... f5 {[%emt 0:04:06]} 16. Qa4 {[%emt 0:08:38][%cal Rb5a6]} e4 {[%emt 0:07:36]} 17. Be2 {[%emt 0:01:05]} (17. Bc4 $1 $14) 17... f4 {[%emt 0:09:39]} 18. Qxe4 {[%emt 0:08:34] aiming for Bc3.} Nf5 {[%emt 0:13:20]} ({Better is} 18... Bxb2 $11 19. Bb4 Bxa1 20. Rxa1 f3 21. Bxf3 Nf5) 19. Nc2 {[%emt 0:06:16]} ({Avoid the trap} 19. Qxf4 $2 Nd4 20. Qe3 Re8 $19) ({Reject} 19. Bxf4 Bxb2 20. Nc2 Bxa1 21. Rxa1 Re8 $15) (19. Bc3 $14) 19... axb5 $1 $11 {[%emt 0:17:50]} 20. Qd3 {[%emt 0:20:02]} ({Much worse is} 20. Qxf4 {[#]} Nd4 $1 {[%mdl 512]} 21. Qxd4 Bxd4 22. Nxd4 Qf6 $17) 20... Bxb2 {[%emt 0:09:41]} 21. Rab1 {[%emt 0:05:05]} Be5 {[%emt 0:02:43]} 22. Bc3 {[%emt 0:00:20]} (22. Rb4 $11) 22... Bxc3 {[%emt 0:02:28]} 23. Qxc3 {[%emt 0:00:06]} Rxa2 {[%emt 0:01:09] Threatens to win with ...Nh4.} 24. Bxb5 {[%emt 0:01:05]} f3 {[%emt 0:01:07] [#] Hoping for ...fxg2.} 25. g3 {[%emt 0:00:23]} Qa5 {[%emt 0:06:14]} 26. Qxa5 {[%emt 0:02:50]} (26. Nb4 $5 {[%cal Rb4a2]} Ra3 27. Qc4 $14) 26... Rxa5 {[%emt 0:00:06] Weighted Error Value: White=0.19 (very precise) /Black=0.13 (very precise)} 1/2-1/2

[Event "1st Serbian League 2022"]
[Site "Vrnjacka Banja"]
[Date "2022.09.20"]
[Round "1.7"]
[White "Yilmazyerli, Mert"]
[Black "Indjic, Aleksandar"]
[Result "1/2-1/2"]
[ECO "A30"]
[WhiteElo "2533"]
[BlackElo "2628"]
[Annotator "TA"]
[PlyCount "113"]
[EventDate "2022.09.20"]
[EventType "team-tourn"]
[EventCountry "SRB"]
[SourceTitle "playchess.com"]
[Source "ChessBase"]
[SourceQuality "1"]
[TimeControl "40/5400+30:1800+30"]

{[%evp 21,113,0,0,0,0,0,0,0,0,0,0,0,0,0,0,0,0,0,0,0,0,0,0,0,0,0,0,0,0,0,0,0,0,0,0,0,21,0,0,0,0,0,0,0,0,0,0,0,0,0,0,0,0,0,0,0,0,-8,-8,-8,-8,-8,0,0,0,0,-7,-8,-8,-8,-8,-8,-8,-8,-8,-8,-8,-8,-8,-8,-8,-8,0,0,0,0,0,-8,-8,-8,0,-8,0,-8]} 1. Nf3 {[%emt 0:00:06]} Nf6 {[%emt 0:00:53]} 2. g3 {[%emt 0:00:20]} c5 {[%emt 0:02:11]} 3. Bg2 {[%emt 0:00:52]} Nc6 {[%emt 0:00:37]} 4. c4 {[%emt 0:01:38]} d5 {[%emt 0:03:22]} 5. cxd5 {[%emt 0:07:12]} Nxd5 {[%emt 0:00:07]} 6. d4 {[%emt 0:00:13]} cxd4 {[%emt 0:00:08]} 7. Nxd4 {[%emt 0:00:13]} Ndb4 {[%emt 0:00:06]} 8. Nxc6 {[%emt 0:00:50]} Qxd1+ {[%emt 0:00:08]} 9. Kxd1 {[%emt 0:00:05]} Nxc6 {[%emt 0:00:08]} 10. Bxc6+ {[%emt 0:04:32]} bxc6 {[%emt 0:00:06]} 11. Nc3 {[%emt 0:00:38]} e5 {[%emt 0:00:08] CPLX 2.0. The position is equal.} 12. Be3 {[%emt 0:02:15] A30: Symmetrical English: Double Fianchetto and Hedgehog.} Bf5 {[%emt 0:00:44]} 13. f3 {[%emt 0:06:58]} Bb4 {[%emt 0:01:23] [#]} 14. Ke1 $146 {[%emt 0:07:40] BESTDEEP} ({Predecessor:} 14. Rc1 Ke7 15. Ke1 Rhb8 16. b3 Ba3 17. Rd1 Bb4 18. Rc1 Ba3 19. Rd1 Bb4 20. Bd2 {0-1 (36) Sunilduth Lyna,N (2658)-Paravyan,D (2617) Chess.com INT 2022}) 14... Bxc3+ {[%emt 0:01:25] CPLX 2.3} 15. bxc3 {[%emt 0:00:04] RECAPT} f6 {[%emt 0:00:08] CPLX 2.0} 16. Kf2 {[%emt 0:01:10]} Kf7 {[%emt 0:00:07] CPLX 2.0} 17. Rhd1 {[%emt 0:00:54]} a5 {[%emt 0:03:05] BESTDEEP} 18. a4 {[%emt 0:02:04]} Rab8 {[%emt 0:00:24] BESTDEEP} 19. g4 {[%emt 0:06:41]} Be6 {[%emt 0:01:58] CPLX 2.2} 20. Rab1 {[%emt 0:02:14] CPLX 2.0} h5 {[%emt 0:02:46]} 21. Rxb8 {[%emt 0:03:29]} Rxb8 {[%emt 0:00:20] RECAPT} 22. gxh5 $11 {[%emt 0:00:03][%mdl 4096] Endgame KRB-KRB. CPLX 2.0} Rb3 {[%emt 0:00:10] CPLX 2.0} 23. Rd8 {[%emt 0:07:25]} Rxc3 {[%emt 0:00:38] BESTDEEP} 24. Ra8 {[%emt 0:01:14] CPLX 2.1} Rc2 {[%emt 0:00:08] CPLX 2.1} 25. Ke1 {[%emt 0:01:03]} Ra2 {[%emt 0:13:38] BESTDEEP} 26. Rxa5 {[%emt 0:00:33]} Bc4 {[%emt 0:02:34] BESTDEEP} 27. Bd2 {[%emt 0:00:50] BESTDEEP} Ra1+ {[%emt 0:00:11] CPLX 2.1} 28. Kf2 {[%emt 0:00:05] EASY} Rh1 {[%emt 0:01:50] CPLX 2.1 21 (Ra1-a2) (=1)} 29. Rc5 {[%emt 0:03:32] CPLX 2.1 21 (Ra5-a7) (=1)} Rxh2+ {[%emt 0:01:32] EASY} 30. Kg3 {[%emt 0:01:27] CPLX 2.0} Rxe2 {[%emt 0:00:09] EASY} 31. Rxc4 {[%emt 0:00:07] CPLX 2.6} Rxd2 {[%emt 0:00:05] EASY} 32. Rxc6 {[%emt 0:00:05] KR-KR. EASY} Rd3 {[%emt 0:03:08] CPLX 2.0} 33. Kg2 {[%emt 0:05:10] CPLX 2.0 0 (a4-a5) (=1)} Ra3 {[%emt 0:00:29] CPLX 2.0} 34. Ra6 {[%emt 0:00:34] BESTDEEP} Kg8 {[%emt 0:00:44] CPLX 2.0 0 (f6-f5) (=1)} 35. h6 {[%emt 0:01:08] CPLX 2.0} Kh7 {[%emt 0:00:39] CPLX 2.0 0 (g7xh6) (=1)} 36. hxg7 {[%emt 0:00:18] EASY} Kxg7 {[%emt 0:00:06] RECAPT} 37. Ra8 {[%emt 0:03:08] CPLX 2.0 0 (Kg2-g3) (=1)} Kg6 {[%emt 0:09:55] CPLX 2.0} 38. Rg8+ {[%emt 0:00:53] BESTDEEP} Kf7 {[%emt 0:00:08] CPLX 2.0 0 (Kg6-f5) (=1)} 39. Rg4 {[%emt 0:01:04] CPLX 2.0 8 (Rg8-a8) (=1)} f5 {[%emt 0:00:07] CPLX 2.0} 40. Rb4 {[%emt 0:00:31] CPLX 2.0} Kf6 {[%emt 0:00:24] CPLX 2.0} 41. Kf2 $1 {[%emt 0:34:30] CPLX 2.0} Ra2+ {[%emt 0:32:12] CPLX 2.0 8 (f5-f4) (=1)} 42. Kg3 {[%emt 0:05:06] CPLX 2.0} f4+ {[%emt 0:02:02] CPLX 2.0 0 (Kf6-e6) (=1)} 43. Kh3 $1 {[%emt 0:00:30] DEEPSTRONG} Kf5 {[%emt 0:00:25] CPLX 2.0} 44. Rc4 {[%emt 0:01:58] CPLX 2.0 1 (Rb4-b8) (=1)} Ra3 {[%emt 0:00:55] CPLX 2.0} 45. Kg2 {[%emt 0:00:31] EASY} Kg5 {[%emt 0:00:09] CPLX 2.0 0 (Ra3-a1) (=1)} 46. Re4 {[%emt 0:07:27] CPLX 2.0 0 (Rc4-b4) (=1)} Kh4 {[%emt 0:00:31] CPLX 2.0 0 (Kg5-f6) (=1)} 47. Rxe5 {[%emt 0:01:24] CPLX 2.0} Ra2+ {[%emt 0:00:09] CPLX 2.0} 48. Kg1 {[%emt 0:00:38] CPLX 2.0 0 (Kg2-f1) (=1)} Kg3 {[%emt 0:04:12] [#] ( -> ...Ra1+). CPLX 2.0} 49. Rg5+ {[%emt 0:00:25] BESTDEEP} Kxf3 {[%emt 0:00:08] EASY} 50. Rb5 {[%emt 0:00:03] BESTDEEP} Ra1+ {[%emt 0:00:47] CPLX 2.0} 51. Kh2 {[%emt 0:00:05] EASY} Ke2 {[%emt 0:08:16] CPLX 2.0 8 (Ra1-a3) (=1)} 52. Rb2+ $1 {[%emt 0:01:04] DEEPSTRONG} Kf1 {[%emt 0:00:27] CPLX 2.0 0 (Ke2-d3) (=1)} 53. Rb3 {[%emt 0:04:12] CPLX 2.0} Rxa4 {[%emt 0:00:59] CPLX 2.0 0 (Kf1-f2) (=1)} 54. Rb1+ {[%emt 0:00:58] CPLX 2.0 8 (Kh2-h3) (=1)} Ke2 {[%emt 0:00:08] CPLX 2.0} 55. Rb2+ {[%emt 0:00:04] CPLX 2.0 0 (Rb1-b3) (=1)} Ke3 {[%emt 0:00:22] CPLX 2.0 8 (Ke2-f3) (=1)} 56. Rb3+ {[%emt 0:00:04] CPLX 2.0 8 (Kh2-h3) (=1)} Ke4 {[%emt 0:00:40] CPLX 2.0 8 (Ke3-f2) (=1)} 57. Kg2 {[%emt 0:00:10] A rather calm draw.  Weighted Error Value: White=0.01 (flawless) /Black=0.01 (flawless)} 1/2-1/2

[Event "1st Serbian League 2022"]
[Site "Vrnjacka Banja"]
[Date "2022.09.20"]
[Round "1.8"]
[White "Ivanisevic, Ivan"]
[Black "Gokerkan, Cem Kaan"]
[Result "0-1"]
[ECO "E05"]
[WhiteElo "2547"]
[BlackElo "2465"]
[Annotator "TA"]
[PlyCount "150"]
[EventDate "2022.09.20"]
[EventType "team-tourn"]
[EventCountry "SRB"]
[SourceTitle "playchess.com"]
[Source "ChessBase"]
[SourceQuality "1"]
[TimeControl "40/5400+30:1800+30"]

{[%evp 17,150,-18,-21,-17,-22,-23,34,37,34,39,47,33,48,37,23,28,30,18,16,0,95,0,0,-27,-25,-31,-33,-43,-43,-100,-100,-247,-253,-232,-251,-302,-289,-292,-308,-345,-329,-283,-410,-425,-389,-425,-385,-429,-392,-425,-375,-359,-359,-583,-558,-691,-696,-768,-664,-684,-586,-602,0,-599,0,-582,-566,-792,-792,-791,-777,-772,-770,-754,-697,-683,-511,-506,-508,-515,-497,-522,-505,-596,-214,-722,-722,-633,-632,-1127,-1127,-1127,-1116,-1109,-1104,-1071,-1066,-1067,-1043,-3709,-2994,-29960,-29962,-29967,-29953,-29946,-29949,-29953,-29946,-29966,-29967,-29965,-29964,-3188,-1226,-1354,-1308,-1247,-1211,-1106,-630,-993,-615,-29978,-29979,-29978,-29979,-29979,-29980,-29980,-29979,-29981,-29982,-29983,-29984]} 1. d4 {[%emt 0:00:03]} Nf6 {[%emt 0:00:10]} 2. c4 {[%emt 0:00:07]} e6 {[%emt 0:00:06]} 3. g3 {[%emt 0:00:04]} d5 {[%emt 0:00:29]} 4. Bg2 {[%emt 0:00:06]} Be7 {[%emt 0:02:10]} 5. Nf3 {[%emt 0:00:11]} O-O {[%emt 0:00:06]} 6. Nc3 {[%emt 0:05:17]} dxc4 {[%emt 0:03:26]} 7. O-O {[%emt 0:03:42]} Nc6 {[%emt 0:07:40]} 8. e3 {[%emt 0:02:24]} Rb8 {[%emt 0:08:50]} 9. Qa4 {[%emt 0:01:54]} Nb4 {[%emt 0:05:05][%cal Ob7b5] BESTDEEP} 10. Qxa7 {[%emt 0:02:57] BESTDEEP. E05: Open Catalan: 5 Nf3 Be7.} Bd7 {[%emt 0:01:20] CPLX 2.8} 11. Ne5 {[%emt 0:00:18][%csl LRb7,LRc4] CPLX 2.5} Nfd5 {[%emt 0:07:55] [#] RELBLUND 57 (Qd8-c8) (=19)} ({Black should try} 11... Qc8 $11) 12. Qxb8 $1 $14 {[%emt 0:01:37] BESTDEEP. White is slightly better.} Qxb8 {[%emt 0:00:45] RECAPT} 13. Nxd7 {[%emt 0:00:07] EASY} Qa7 {[%emt 0:03:09] Threatens to win with ...Re8. BESTDEEP} 14. Nxf8 {[%emt 0:00:47] CPLX 4.0} Bxf8 {[%emt 0:00:44] RECAPT} 15. Bd2 {[%emt 0:00:55] CPLX 3.7} c6 {[%emt 0:04:28] [#] CPLX 3.7} 16. a3 $146 {[%emt 0:09:48]} ({Predecessor:} 16. b3 b5 17. bxc4 bxc4 18. a4 Nc2 19. Rac1 Ncb4 20. Ne4 Qa6 21. Bxb4 Nxb4 22. Nd2 Qxa4 23. Rxc4 {1-0 (48) Miton,K (2591)-Lysyj,I (2666) Warsaw 2013}) 16... Nd3 {[%emt 0:06:28] EASY} 17. Rfb1 {[%emt 0:02:25] CPLX 3.8 12 (Nc3xd5) (=2)} Qb6 {[%emt 0:05:18] CPLX 3.9} 18. Bf3 {[%emt 0:08:22] CPLX 3.9 16 (b2-b4) (=3)} e5 {[%emt 0:08:08] RELBLUND 95 (Qb6-d8) (=15)} (18... Qd8 $11) 19. dxe5 {[%emt 0:07:28] CPLX 4.2 95 (Nc3xd5) (=12)} (19. Nxd5 $16 cxd5 20. Bxd5 exd4 21. Bxc4) 19... Nxe5 $11 {[%emt 0:00:22] Pair of Knights! RECAPT} 20. Be2 {[%emt 0:00:05] Black must now prevent Nxd5. CPLX 3.9 27 (Bf3-g2) (=14)} ({Reject} 20. Nxd5 Nxf3+ 21. Kg2 Nh4+ 22. gxh4 cxd5 $17) (20. Bxd5 cxd5 21. Rd1 (21. Nxd5 $2 Qc6 $19) 21... Qh6 $19) 20... Nf6 {[%emt 0:00:45][%mdl 1024] Black has compensation. BESTDEEP} 21. Be1 {[%emt 0:13:58] CPLX 3.4 6 (a3-a4) (=13)} h5 {[%emt 0:01:21][%cal Bh7h5,Bh5h4,Bh4h3][%mdl 32] CPLX 3.4 0 (g7-g6) (=12)} 22. Rd1 {[%emt 0:10:15] DEEPSTRONG} h4 {[%emt 0:04:29] BESTDEEP} 23. Rd4 {[%emt 0:05:23] Black continues to play with concentration. CPLX 3.9 57 (g3xh4) (=15)} (23. gxh4 $15 Nd3 24. Rab1) 23... h3 $17 {[%emt 0:01:44] BESTDEEP} 24. Rb1 {[%emt 0:01:44] [#] MISSDEEP-a3-a4 147 (a3-a4) (=24)} (24. a4 $17) 24... c5 $1 $19 {[%emt 0:02:59] DEEPSTRONG=>BLUNDERREACT} 25. Rf4 {[%emt 0:09:50] BESTDEEP} Qe6 {[%emt 0:07:18] And now ...g5 would win. BESTDEEP} 26. Rd1 {[%emt 0:01:04] CPLX 4.0 51 (e3-e4) (=24)} g5 {[%emt 0:01:06] EASY} 27. Rxf6 {[%emt 0:00:05] CPLX 4.3} Qxf6 {[%emt 0:00:01] RECAPT} 28. Nd5 {[%emt 0:00:07] CPLX 3.5 37 (Kg1-f1) (=24)} Qe6 {[%emt 0:05:31] BESTDEEP} 29. Bc3 {[%emt 0:03:44] EASY} Bg7 {[%emt 0:03:13] BESTDEEP} 30. f3 {[%emt 0:04:38] CPLX 3.9 15 (Bc3xe5) (=22)} g4 {[%emt 0:03:00] BESTDEEP} 31. Bxe5 {[%emt 0:01:45] BESTDEEP} Qxe5 {[%emt 0:00:28] RECAPT 40 (g4xf3) (=8)} ({Don't blunder} 31... Bxe5 $2 32. Bxc4 Bxb2 33. Kf2 $19) 32. Rd2 {[%emt 0:00:19] EASY} gxf3 {[%emt 0:00:32] CPLX 3.8} 33. Bxf3 {[%emt 0:00:16] RECAPT} b5 {[%emt 0:00:33] CPLX 3.5} 34. Kf2 {[%emt 0:00:09] CPLX 3.5} Bh6 {[%emt 0:02:17] BESTDEEP} 35. Nf4 $2 {[%emt 0:01:22] CPLX 3.7 224 (Kf2-f1) (=26)} (35. Kf1) 35... Bxf4 {[%emt 0:03:35] BESTDEEP} 36. gxf4 {[%emt 0:00:04][%mdl 4096] Endgame KQ-KRB. RECAPT 133 (e3xf4) (=30)} Qf6 {[%emt 0:00:18] Prevents Rd8+. CPLX 3.3} 37. Be2 {[%emt 0:00:41] CPLX 3.0 72 (Rd2-e2) (=32)} Qh4+ {[%emt 0:01:36] CPLX 3.0 104 (Qf6-g6) (=10)} 38. Kf1 {[%emt 0:00:04] CPLX 3.0} Qe7 {[%emt 0:00:13] CPLX 3.2 98 (Qh4-h7) (=13)} 39. Kf2 {[%emt 0:00:06] CPLX 3.0} Qh4+ {[%emt 0:00:35] CPLX 3.0 400 (Qe7-f6) (=26)} 40. Kf1 $1 {[%emt 0:00:05] RELBLUND=>BLUNDERREACT} Qe7 {[%emt 0:00:41] CPLX 3.2 400 (Qh4-h7) (=37)} 41. Kf2 {[%emt 0:30:22] RELBLUND=>BLUNDERREACT} Qe4 {[%emt 0:02:51] CPLX 3.0} 42. Bf1 {[%emt 0:00:00] Inhibits Qg2+. CPLX 4.1 226 (Be2-f3) (=34)} b4 {[%emt 0:02:29] BESTDEEP} 43. axb4 {[%emt 0:00:00] CPLX 3.4} cxb4 {[%emt 0:00:11] RECAPT} 44. Bxh3 {[%emt 0:00:00] CPLX 3.2} Qb1 {[%emt 0:10:02] CPLX 3.0 2 (c4-c3) (=33)} 45. Bf1 {[%emt 0:00:00] CPLX 3.0 0 (Bh3-d7) (=31)} Qc1 {[%emt 0:02:26] CPLX 3.0 57 (c4-c3) (=34)} 46. Re2 {[%emt 0:00:00] BESTDEEP} Kg7 {[%emt 0:03:33] CPLX 2.9 172 (c4-c3) (=38)} 47. Bg2 {[%emt 0:00:00] CPLX 2.9} Qb1 {[%emt 0:01:26] BESTDEEP} 48. Bc6 {[%emt 0:00:00] BESTDEEP} Kf6 {[%emt 0:04:14] CPLX 3.1} 49. h4 {[%emt 0:00:00] CPLX 3.2 25 (h2-h3) (=29)} b3 {[%emt 0:03:46] BESTDEEP} 50. h5 {[%emt 0:00:00] CPLX 3.3 91 (Bc6-d5) (=30)} Qf5 $2 {[%emt 0:01:32] Against Bd5. CPLX 3.4 382 (Kf6-g7) (=43)} (50... Kg7 51. Rd2 c3 52. bxc3 (52. h6+ $2 Kxh6 53. bxc3 b2 $19) 52... b2) 51. h6 $2 {[%emt 0:00:20] RELBLUND 400 (Bc6-f3) (=39)} (51. Bf3) 51... Kg6 {[%emt 0:00:47] CPLX 3.6=>BLUNDERREACT} 52. Rd2 {[%emt 0:01:12] CPLX 3.6 0 (Kf2-f3) (=38)} Kxh6 {[%emt 0:01:04] CPLX 3.5} 53. Bd5 {[%emt 0:00:10] CPLX 2.9 400 (Rd2-e2) (=46)} c3 {[%emt 0:00:53] DEEPSTRONG=>BLUNDERREACT} 54. bxc3 {[%emt 0:00:12] CPLX 3.5} b2 {[%emt 0:00:11] EASY} 55. Ba2 {[%emt 0:02:36] CPLX 4.1} b1=Q {[%emt 0:00:11] CPLX 4.0 5 (b2-b1R) (=39)} 56. Bxb1 {[%emt 0:00:08] EASY} Qxb1 {[%emt 0:00:02] KQ-KR. RECAPT} 57. c4 {[%emt 0:00:36] CPLX 2.7 1 (Kf2-e2) (=42)} Qc1 {[%emt 0:00:22] BESTDEEP} 58. Rd4 {[%emt 0:00:10] RELBLUND 400 (Rd2-d6) (=50)} f5 {[%emt 0:01:47] CPLX 2.8=>BLUNDERREACT} 59. Rd6+ {[%emt 0:03:16] MISSDEEP-Rd4-d8 400 (Rd4-d8) (=57)} Kh5 {[%emt 0:00:09] CPLX 2.9} 60. Rd8 {[%emt 0:00:10] RELBLUND 5 (Rd6-d7) (=56)} Qb2+ {[%emt 0:00:38] CPLX 2.9 14 (Qc1xc4) (=35)} 61. Kf3 {[%emt 0:00:41]} Kh4 {[%emt 0:01:52]} 62. Rd7 {[%emt 0:01:10]} Qh8 {[%emt 0:00:03]} 63. Rd5 {[%emt 0:06:41]} Qh5+ {[%emt 0:00:25]} 64. Kf2 {[%emt 0:00:00]} Kg4 {[%emt 0:00:14]} 65. Ke2 {[%emt 0:00:00]} Kg3+ {[%emt 0:00:14]} (65... Qh1 $142 66. Re5 Qb1) 66. Kd2 {[%emt 0:00:00]} Kf3 {[%emt 0:01:48] Strongly threatening ...Qh2+.} 67. Re5 {[%emt 0:00:00]} Qf7 {[%emt 0:00:13]} 68. Kc3 {[%emt 0:00:00]} Qd7 {[%emt 0:00:13]} 69. c5 {[%emt 0:00:00]} Qa4 {[%emt 0:01:07]} 70. Kd3 {[%emt 0:01:44]} Qb4 {[%emt 0:00:14] Black mates.} 71. c6 {[%emt 0:01:39]} Qd6+ {[%emt 0:00:04]} 72. Kc4 {[%emt 0:00:09]} Qxc6+ {[%emt 0:00:05]} 73. Kd4 {[%emt 0:00:11]} Qd6+ {[%emt 0:01:03]} 74. Kc4 {[%emt 0:00:02]} Qd2 {[%emt 0:00:15]} 75. Kc5 {[%emt 0:00:13] [#]} Qxe3+ $1 {[%emt 0:00:39][%mdl 512] Weighted Error Value: White=0.57/Black=0.38} 0-1

[Event "1st Serbian League 2022"]
[Site "Vrnjacka Banja"]
[Date "2022.09.20"]
[Round "1.9"]
[White "Arsovic, Goran"]
[Black "Perunovic, Milos"]
[Result "1/2-1/2"]
[ECO "D85"]
[WhiteElo "2362"]
[BlackElo "2542"]
[Annotator "TA"]
[PlyCount "32"]
[EventDate "2022.09.20"]
[EventType "team-tourn"]
[EventCountry "SRB"]
[SourceTitle "playchess.com"]
[Source "ChessBase"]
[SourceQuality "1"]
[TimeControl "40/5400+30:1800+30"]

{[%evp 9,32,9,37,12,29,31,48,0,1,4,6,0,11,-14,39,0,48,50,60,51,58,24,15,24,58]} 1. d4 {[%emt 0:00:04]} Nf6 {[%emt 0:00:12][%cal Bg8f6,Bf6d5,Bd5b4,Bb4d3][%mdl 32]} 2. c4 {[%emt 0:00:14]} g6 {[%emt 0:00:14]} 3. Nc3 {[%emt 0:01:05]} d5 {[%emt 0:00:04]} 4. cxd5 {[%emt 0:01:34]} Nxd5 {[%emt 0:00:05]} 5. Bd2 {[%emt 0:00:07]} c5 {[%emt 0:13:40] CPLX 2.3 28 (Nd5xc3) (=28)} 6. Rc1 {[%emt 0:05:52] CPLX 2.5 25 (d4xc5) (=25). D85: Exchange Grünfeld: Unusual White 7th moves and lines with 7 Nf3.} Nc6 {[%emt 0:11:42] CPLX 2.5 17 (Nd5xc3) (=23)} 7. dxc5 {[%emt 0:00:46] CPLX 2.5} Bg7 {[%emt 0:04:02] [#] CPLX 2.2} 8. e3 $146 {[%emt 0:09:27] CPLX 2.3 48 (Qd1-a4) (=24)} (8. Qa4 $14) ({Predecessor:} 8. e4 Ndb4 9. Nf3 O-O 10. a3 Nd3+ 11. Bxd3 Qxd3 12. Qe2 Qxe2+ 13. Kxe2 Be6 14. Nd5 Bxb2 {0-1 (34) Martinovic,S (2548)-Carlsen,M (2847) Krasnaya Polyana 2021}) 8... Ndb4 $11 {[%emt 0:10:18] CPLX 2.4} 9. a3 {[%emt 0:12:22] CPLX 2.6 0 (Qd1-e2) (=18)} Nd3+ {[%emt 0:01:04] EASY} 10. Bxd3 {[%emt 0:00:07] EASY} Qxd3 {[%emt 0:00:03] RECAPT} 11. Qe2 {[%emt 0:04:43] CPLX 3.0 25 (Ng1-e2) (=16)} Ne5 {[%emt 0:15:41] RELBLUND 53 (Qd3xe2) (=14)} ({Better is} 11... Qxe2+ $11 12. Ngxe2 O-O) 12. Nf3 {[%emt 0:16:40] CPLX 2.9 39 (f2-f4) (=20)} (12. f4 $5 {[%cal Rf4e5]} Qxe2+ 13. Kxe2 $11) 12... Bg4 {[%emt 0:01:47] CPLX 3.1 48 (Ne5xf3) (=18)} (12... Nxf3+ $11 {might be stronger.} 13. gxf3 Qxe2+ 14. Kxe2 Be6) 13. Nxe5 $14 {[%emt 0:00:50] CPLX 3.4} Bxe2 {[%emt 0:00:22] A strong pair of Bishops. CPLX 5.0} 14. Nxd3 {[%emt 0:00:08] EASY} Bxd3 {[%emt 0:00:03] RECAPT} 15. Nd1 {[%emt 0:05:04] CPLX 2.0 34 (f2-f3) (=17)} O-O {[%emt 0:04:50] CPLX 2.0} 16. Bc3 {[%emt 0:00:49] CPLX 2.0} e5 {[%emt 0:01:01] Weighted Error Value: White=0.18 (very precise) /Black=0.19 (very precise)} 1/2-1/2

[Event "1st Serbian League 2022"]
[Site "Vrnjacka Banja"]
[Date "2022.09.20"]
[Round "1.10"]
[White "Miljkovic, Miroslav D"]
[Black "Ristic, Nenad"]
[Result "*"]
[ECO "D45"]
[WhiteElo "2456"]
[BlackElo "2267"]
[Annotator "TA"]
[PlyCount "32"]
[EventDate "2022.09.20"]
[EventType "team-tourn"]
[EventCountry "SRB"]
[SourceTitle "playchess.com"]
[Source "ChessBase"]
[SourceQuality "1"]
[TimeControl "40/5400+30:1800+30"]

{[%evp 21,32,0,3,0,0,0,0,0,0,0,0,0,0]} 1. d4 {[%emt 0:00:10]} Nf6 {[%emt 0:00:39]} 2. Nf3 {[%emt 0:00:23]} d5 {[%emt 0:00:56]} 3. c4 {[%emt 0:00:33]} e6 {[%emt 0:00:26]} 4. Nc3 {[%emt 0:00:23]} c6 {[%emt 0:01:23]} 5. e3 {[%emt 0:02:13]} Nbd7 {[%emt 0:01:16]} 6. Qc2 {[%emt 0:00:42]} Bd6 {[%emt 0:02:06]} 7. b3 {[%emt 0:01:16]} O-O {[%emt 1:27:14]} 8. Be2 {[%emt 0:01:50]} b6 {[%emt 0:00:54]} 9. O-O {[%emt 1:27:30]} Bb7 {[%emt 0:00:29]} 10. Bb2 {[%emt 0:02:43]} Qe7 {[%emt 0:01:37]} 11. a4 {[%emt 0:01:39]} a5 {[%emt 0:03:32] CPLX 2.5. The position is equal.} 12. Rfd1 {[%emt 0:03:11] CPLX 2.5 3 (Be2-d3) (=3) Recently 12.Rad1 got a lot of attention. D45: Semi-Slav: 5 e3.} Rfd8 {[%emt 0:16:26] CPLX 2.5} 13. Rac1 {[%emt 0:04:02] CPLX 2.5 0 (Be2-d3) (=2)} Rac8 {[%emt 0:00:48] [#] CPLX 2.5} 14. g3 $146 {[%emt 0:01:47] CPLX 2.5 0 (Be2-d3) (=1)} ({Predecessor:} 14. Qb1 Bb4 15. Na2 Bd6 16. Nc3 Bb4 17. Na2 {½-½ (17) Bykhovsky,A (2415)-Haimovich,T (2322) Herzliya 2000}) 14... h6 {[%emt 0:00:00] CPLX 2.4} 15. Bf1 {[%emt 0:13:10] BESTDEEP} Bb4 {[%emt 0:00:00] CPLX 2.4} 16. Bg2 {[%emt 0:17:52] CPLX 2.5} Ba6 {[%emt 0:00:00] An uneventful encounter.  Weighted Error Value: White=0.01 (flawless) /Black=0.00 (flawless)} *